Workbook

Sheet Detector Fetal por Regiões
A1: Região | B1: UF | C1: COD IBGE | D1: Município | E1: Total | F1: Total | G1: N.º de Termo de Doação
E2: Sonar | F2: Sonar
A3: Centro-Oeste | B3: DISTRITO FEDERAL | C3: 530010 | D3: Brasília | E3: 163 | F3: =E3*194.69 -> R$ 31,734.47 | G3: 6681
A4: Sudeste | B4: ESPIRITO SANTO | C4: 320010 | D4: Afonso Cláudio | E4: 14 | F4: =E4*194.69 -> R$ 2,725.66 | G4: 6682
A5: Sudeste | B5: ESPIRITO SANTO | C5: 320016 | D5: Água Doce do Norte | E5: 5 | F5: R$ 973.45 | G5: 6683
A6: Sudeste | B6: ESPIRITO SANTO | C6: 320013 | D6: Águia Branca | E6: 5 | F6: R$ 973.45 | G6: 6684
A7: Sudeste | B7: ESPIRITO SANTO | C7: 320020 | D7: Alegre | E7: 18 | F7: R$ 3,504.42 | G7: 6685
A8: Sudeste | B8: ESPIRITO SANTO | C8: 320030 | D8: Alfredo Chaves | E8: 11 | F8: R$ 2,141.59 | G8: 6686
A9: Sudeste | B9: ESPIRITO SANTO | C9: 320035 | D9: Alto Rio Novo | E9: 3 | F9: R$ 584.07 | G9: 6687
A10: Sudeste | B10: ESPIRITO SANTO | C10: 320040 | D10: Anchieta | E10: 9 | F10: R$ 1,752.21 | G10: 6688
A11: Sudeste | B11: ESPIRITO SANTO | C11: 320050 | D11: Apiacá | E11: 4 | F11: R$ 778.76 | G11: 6689
A12: Sudeste | B12: ESPIRITO SANTO | C12: 320060 | D12: Aracruz | E12: 28 | F12: R$ 5,451.32 | G12: 6690
A13: Sudeste | B13: ESPIRITO SANTO | C13: 320070 | D13: Atilio Vivacqua | E13: 5 | F13: R$ 973.45 | G13: 6691
A14: Sudeste | B14: ESPIRITO SANTO | C14: 320080 | D14: Baixo Guandu | E14: 12 | F14: R$ 2,336.28 | G14: 6692
A15: Sudeste | B15: ESPIRITO SANTO | C15: 320090 | D15: Barra de São Francisco | E15: 1 | F15: R$ 194.69 | G15: 6693
A16: Sudeste | B16: ESPIRITO SANTO | C16: 320100 | D16: Boa Esperança | E16: 7 | F16: R$ 1,362.83 | G16: 6694
A17: Sudeste | B17: ESPIRITO SANTO | C17: 320110 | D17: Bom Jesus do Norte | E17: 5 | F17: R$ 973.45 | G17: 6695
A18: Sudeste | B18: ESPIRITO SANTO | C18: 320115 | D18: Brejetuba | E18: 7 | F18: R$ 1,362.83 | G18: 6696
A19: Sudeste | B19: ESPIRITO SANTO | C19: 320120 | D19: Cachoeiro de Itapemirim | E19: 50 | F19: R$ 9,734.50 | G19: 6697
A20: Sudeste | B20: ESPIRITO SANTO | C20: 320130 | D20: Cariacica | E20: 40 | F20: R$ 7,787.60 | G20: 6698
A21: Sudeste | B21: ESPIRITO SANTO | C21: 320140 | D21: Castelo | E21: 5 | F21: R$ 973.45 | G21: 6699
A22: Sudeste | B22: ESPIRITO SANTO | C22: 320150 | D22: Colatina | E22: 38 | F22: R$ 7,398.22 | G22: 6700
A23: Sudeste | B23: ESPIRITO SANTO | C23: 320160 | D23: Conceição da Barra | E23: 8 | F23: R$ 1,557.52 | G23: 6701
A24: Sudeste | B24: ESPIRITO SANTO | C24: 320170 | D24: Conceição do Castelo | E24: 3 | F24: R$ 584.07 | G24: 6702
A25: Sudeste | B25: ESPIRITO SANTO | C25: 320180 | D25: Divino de São Lourenço | E25: 3 | F25: R$ 584.07 | G25: 6703
A26: Sudeste | B26: ESPIRITO SANTO | C26: 320190 | D26: Domingos Martins | E26: 18 | F26: R$ 3,504.42 | G26: 6704
A27: Sudeste | B27: ESPIRITO SANTO | C27: 320200 | D27: Dores do Rio Preto | E27: 3 | F27: R$ 584.07 | G27: 6705
A28: Sudeste | B28: ESPIRITO SANTO | C28: 320210 | D28: Ecoporanga | E28: 6 | F28: R$ 1,168.14 | G28: 6706
A29: Sudeste | B29: ESPIRITO SANTO | C29: 320220 | D29: Fundão | E29: 7 | F29: R$ 1,362.83 | G29: 6707
A30: Sudeste | B30: ESPIRITO SANTO | C30: 320225 | D30: Governador Lindenberg | E30: 6 | F30: R$ 1,168.14 | G30: 6708
A31: Sudeste | B31: ESPIRITO SANTO | C31: 320230 | D31: Guaçuí | E31: 12 | F31: R$ 2,336.28 | G31: 6709
A32: Sudeste | B32: ESPIRITO SANTO | C32: 320240 | D32: Guarapari | E32: 22 | F32: R$ 4,283.18 | G32: 6710
A33: Sudeste | B33: ESPIRITO SANTO | C33: 320245 | D33: Ibatiba | E33: 6 | F33: R$ 1,168.14 | G33: 6711
A34: Sudeste | B34: ESPIRITO SANTO | C34: 320250 | D34: Ibiraçu | E34: 3 | F34: R$ 584.07 | G34: 6712
A35: Sudeste | B35: ESPIRITO SANTO | C35: 320255 | D35: Ibitirama | E35: 5 | F35: R$ 973.45 | G35: 6713
A36: Sudeste | B36: ESPIRITO SANTO | C36: 320260 | D36: Iconha | E36: 5 | F36: R$ 973.45 | G36: 6714
A37: Sudeste | B37: ESPIRITO SANTO | C37: 320265 | D37: Irupi | E37: 5 | F37: R$ 973.45 | G37: 6715
A38: Sudeste | B38: ESPIRITO SANTO | C38: 320270 | D38: Itaguaçu | E38: 5 | F38: R$ 973.45 | G38: 6716
A39: Sudeste | B39: ESPIRITO SANTO | C39: 320280 | D39: Itapemirim | E39: 6 | F39: R$ 1,168.14 | G39: 6717
A40: Sudeste | B40: ESPIRITO SANTO | C40: 320290 | D40: Itarana | E40: 5 | F40: R$ 973.45 | G40: 6718
A41: Sudeste | B41: ESPIRITO SANTO | C41: 320300 | D41: Iúna | E41: 11 | F41: R$ 2,141.59 | G41: 6719
A42: Sudeste | B42: ESPIRITO SANTO | C42: 320305 | D42: Jaguaré | E42: 5 | F42: R$ 973.45 | G42: 6720
A43: Sudeste | B43: ESPIRITO SANTO | C43: 320310 | D43: Jerônimo Monteiro | E43: 4 | F43: R$ 778.76 | G43: 6721
A44: Sudeste | B44: ESPIRITO SANTO | C44: 320313 | D44: João Neiva | E44: 8 | F44: R$ 1,557.52 | G44: 6722
A45: Sudeste | B45: ESPIRITO SANTO | C45: 320316 | D45: Laranja da Terra | E45: 5 | F45: R$ 973.45 | G45: 6723
A46: Sudeste | B46: ESPIRITO SANTO | C46: 320320 | D46: Linhares | E46: 46 | F46: R$ 8,955.74 | G46: 6724
A47: Sudeste | B47: ESPIRITO SANTO | C47: 320330 | D47: Mantenópolis | E47: 5 | F47: R$ 973.45 | G47: 6725
A48: Sudeste | B48: ESPIRITO SANTO | C48: 320332 | D48: Marataízes | E48: 11 | F48: R$ 2,141.59 | G48: 6726
A49: Sudeste | B49: ESPIRITO SANTO | C49: 320334 | D49: Marechal Floriano | E49: 5 | F49: R$ 973.45 | G49: 6727
A50: Sudeste | B50: ESPIRITO SANTO | C50: 320335 | D50: Marilândia | E50: 5 | F50: R$ 973.45 | G50: 6728
A51: Sudeste | B51: ESPIRITO SANTO | C51: 320340 | D51: Mimoso do Sul | E51: 13 | F51: R$ 2,530.97 | G51: 6729
A52: Sudeste | B52: ESPIRITO SANTO | C52: 320350 | D52: Montanha | E52: 7 | F52: R$ 1,362.83 | G52: 6730
A53: Sudeste | B53: ESPIRITO SANTO | C53: 320360 | D53: Mucurici | E53: 4 | F53: R$ 778.76 | G53: 6731
A54: Sudeste | B54: ESPIRITO SANTO | C54: 320370 | D54: Muniz Freire | E54: 10 | F54: R$ 1,946.90 | G54: 6732
A55: Sudeste | B55: ESPIRITO SANTO | C55: 320380 | D55: Muqui | E55: 9 | F55: R$ 1,752.21 | G55: 6733
A56: Sudeste | B56: ESPIRITO SANTO | C56: 320390 | D56: Nova Venécia | E56: 20 | F56: R$ 3,893.80 | G56: 6734
A57: Sudeste | B57: ESPIRITO SANTO | C57: 320400 | D57: Pancas | E57: 6 | F57: R$ 1,168.14 | G57: 6735
A58: Sudeste | B58: ESPIRITO SANTO | C58: 320405 | D58: Pedro Canário | E58: 7 | F58: R$ 1,362.83 | G58: 6736
A59: Sudeste | B59: ESPIRITO SANTO | C59: 320410 | D59: Pinheiros | E59: 8 | F59: R$ 1,557.52 | G59: 6737
A60: Sudeste | B60: ESPIRITO SANTO | C60: 320420 | D60: Piúma | E60: 5 | F60: R$ 973.45 | G60: 6738
A61: Sudeste | B61: ESPIRITO SANTO | C61: 320425 | D61: Ponto Belo | E61: 3 | F61: R$ 584.07 | G61: 6739
A62: Sudeste | B62: ESPIRITO SANTO | C62: 320430 | D62: Presidente Kennedy | E62: 4 | F62: R$ 778.76 | G62: 6740
A63: Sudeste | B63: ESPIRITO SANTO | C63: 320435 | D63: Rio Bananal | E63: 8 | F63: R$ 1,557.52 | G63: 6741
A64: Sudeste | B64: ESPIRITO SANTO | C64: 320440 | D64: Rio Novo do Sul | E64: 5 | F64: R$ 973.45 | G64: 6742
A65: Sudeste | B65: ESPIRITO SANTO | C65: 320450 | D65: Santa Leopoldina | E65: 6 | F65: R$ 1,168.14 | G65: 6743
A66: Sudeste | B66: ESPIRITO SANTO | C66: 320455 | D66: Santa Maria de Jetibá | E66: 10 | F66: R$ 1,946.90 | G66: 6744
A67: Sudeste | B67: ESPIRITO SANTO | C67: 320460 | D67: Santa Teresa | E67: 12 | F67: R$ 2,336.28 | G67: 6745
A68: Sudeste | B68: ESPIRITO SANTO | C68: 320465 | D68: São Domingos do Norte | E68: 4 | F68: =E68*194.69 -> R$ 778.76 | G68: 6746
A69: Sudeste | B69: ESPIRITO SANTO | C69: 320470 | D69: São Gabriel da Palha | E69: 9 | F69: R$ 1,752.21 | G69: 6747
A70: Sudeste | B70: ESPIRITO SANTO | C70: 320480 | D70: São José do Calçado | E70: 4 | F70: R$ 778.76 | G70: 6748
A71: Sudeste | B71: ESPIRITO SANTO | C71: 320490 | D71: São Mateus | E71: 26 | F71: R$ 5,061.94 | G71: 6749
A72: Sudeste | B72: ESPIRITO SANTO | C72: 320495 | D72: São Roque do Canaã | E72: 4 | F72: R$ 778.76 | G72: 6750
A73: Sudeste | B73: ESPIRITO SANTO | C73: 320500 | D73: Serra | E73: 56 | F73: R$ 10,902.64 | G73: 6751
A74: Sudeste | B74: ESPIRITO SANTO | C74: 320501 | D74: Sooretama | E74: 7 | F74: R$ 1,362.83 | G74: 6752
A75: Sudeste | B75: ESPIRITO SANTO | C75: 320503 | D75: Vargem Alta | E75: 11 | F75: R$ 2,141.59 | G75: 6753
A76: Sudeste | B76: ESPIRITO SANTO | C76: 320506 | D76: Venda Nova do Imigrante | E76: 9 | F76: R$ 1,752.21 | G76: 6754
A77: Sudeste | B77: ESPIRITO SANTO | C77: 320510 | D77: Viana | E77: 13 | F77: R$ 2,530.97 | G77: 6755
A78: Sudeste | B78: ESPIRITO SANTO | C78: 320515 | D78: Vila Pavão | E78: 5 | F78: R$ 973.45 | G78: 6756
A79: Sudeste | B79: ESPIRITO SANTO | C79: 320517 | D79: Vila Valério | E79: 4 | F79: R$ 778.76 | G79: 6757
A80: Sudeste | B80: ESPIRITO SANTO | C80: 320520 | D80: Vila Velha | E80: 30 | F80: R$ 5,840.70 | G80: 6758
A81: Sudeste | B81: ESPIRITO SANTO | C81: 320530 | D81: Vitória | E81: 65 | F81: R$ 12,654.85 | G81: 6759
A82: Centro-Oeste | B82: GOIAS | C82: 520005 | D82: Abadia de Goiás | E82: 3 | F82: R$ 584.07 | G82: 6760
A83: Centro-Oeste | B83: GOIAS | C83: 520010 | D83: Abadiânia | E83: 7 | F83: R$ 1,362.83 | G83: 6761
A84: Centro-Oeste | B84: GOIAS | C84: 520013 | D84: Acreúna | E84: 6 | F84: R$ 1,168.14 | G84: 6762
A85: Centro-Oeste | B85: GOIAS | C85: 520015 | D85: Adelândia | E85: 1 | F85: R$ 194.69 | G85: 6763
A86: Centro-Oeste | B86: GOIAS | C86: 520017 | D86: Água Fria de Goiás | E86: 3 | F86: R$ 584.07 | G86: 6764
A87: Centro-Oeste | B87: GOIAS | C87: 520020 | D87: Água Limpa | E87: 3 | F87: R$ 584.07 | G87: 6765
A88: Centro-Oeste | B88: GOIAS | C88: 520025 | D88: Águas Lindas de Goiás | E88: 10 | F88: R$ 1,946.90 | G88: 6766
A89: Centro-Oeste | B89: GOIAS | C89: 520030 | D89: Alexânia | E89: 6 | F89: R$ 1,168.14 | G89: 6767
A90: Centro-Oeste | B90: GOIAS | C90: 520050 | D90: Aloândia | E90: 1 | F90: R$ 194.69 | G90: 6768
A91: Centro-Oeste | B91: GOIAS | C91: 520055 | D91: Alto Horizonte | E91: 1 | F91: R$ 194.69 | G91: 6769
A92: Centro-Oeste | B92: GOIAS | C92: 520060 | D92: Alto Paraíso de Goiás | E92: 3 | F92: R$ 584.07 | G92: 6770
A93: Centro-Oeste | B93: GOIAS | C93: 520080 | D93: Alvorada do Norte | E93: 3 | F93: R$ 584.07 | G93: 6771
A94: Centro-Oeste | B94: GOIAS | C94: 520082 | D94: Amaralina | E94: 2 | F94: R$ 389.38 | G94: 6772
A95: Centro-Oeste | B95: GOIAS | C95: 520085 | D95: Americano do Brasil | E95: 2 | F95: R$ 389.38 | G95: 6773
A96: Centro-Oeste | B96: GOIAS | C96: 520090 | D96: Amorinópolis | E96: 1 | F96: R$ 194.69 | G96: 6774
A97: Centro-Oeste | B97: GOIAS | C97: 520110 | D97: Anápolis | E97: 59 | F97: R$ 11,486.71 | G97: 6775
A98: Centro-Oeste | B98: GOIAS | C98: 520120 | D98: Anhanguera | E98: 2 | F98: R$ 389.38 | G98: 6776
A99: Centro-Oeste | B99: GOIAS | C99: 520130 | D99: Anicuns | E99: 7 | F99: R$ 1,362.83 | G99: 6777
A100: Centro-Oeste | B100: GOIAS | C100: 520140 | D100: Aparecida de Goiânia | E100: 43 | F100: R$ 8,371.67 | G100: 6778
A101: Centro-Oeste | B101: GOIAS | C101: 520145 | D101: Aparecida do Rio Doce | E101: 2 | F101: R$ 389.38 | G101: 6779
A102: Centro-Oeste | B102: GOIAS | C102: 520150 | D102: Aporé | E102: 1 | F102: R$ 194.69 | G102: 6780
A103: Centro-Oeste | B103: GOIAS | C103: 520160 | D103: Araçu | E103: 2 | F103: R$ 389.38 | G103: 6781
A104: Centro-Oeste | B104: GOIAS | C104: 520170 | D104: Aragarças | E104: 6 | F104: R$ 1,168.14 | G104: 6782
A105: Centro-Oeste | B105: GOIAS | C105: 520180 | D105: Aragoiânia | E105: 3 | F105: R$ 584.07 | G105: 6783
A106: Centro-Oeste | B106: GOIAS | C106: 520215 | D106: Araguapaz | E106: 3 | F106: R$ 584.07 | G106: 6784
A107: Centro-Oeste | B107: GOIAS | C107: 520235 | D107: Arenópolis | E107: 1 | F107: R$ 194.69 | G107: 6785
A108: Centro-Oeste | B108: GOIAS | C108: 520250 | D108: Aruanã | E108: 2 | F108: R$ 389.38 | G108: 6786
A109: Centro-Oeste | B109: GOIAS | C109: 520260 | D109: Aurilândia | E109: 2 | F109: R$ 389.38 | G109: 6787
A110: Centro-Oeste | B110: GOIAS | C110: 520280 | D110: Avelinópolis | E110: 1 | F110: R$ 194.69 | G110: 6788
A111: Centro-Oeste | B111: GOIAS | C111: 520310 | D111: Baliza | E111: 2 | F111: R$ 389.38 | G111: 6789
A112: Centro-Oeste | B112: GOIAS | C112: 520320 | D112: Barro Alto | E112: 2 | F112: R$ 389.38 | G112: 6790
A113: Centro-Oeste | B113: GOIAS | C113: 520330 | D113: Bela Vista de Goiás | E113: 9 | F113: R$ 1,752.21 | G113: 6791
A114: Centro-Oeste | B114: GOIAS | C114: 520340 | D114: Bom Jardim de Goiás | E114: 4 | F114: R$ 778.76 | G114: 6792
A115: Centro-Oeste | B115: GOIAS | C115: 520350 | D115: Bom Jesus de Goiás | E115: 6 | F115: R$ 1,168.14 | G115: 6793
A116: Centro-Oeste | B116: GOIAS | C116: 520355 | D116: Bonfinópolis | E116: 2 | F116: R$ 389.38 | G116: 6794
A117: Centro-Oeste | B117: GOIAS | C117: 520357 | D117: Bonópolis | E117: 2 | F117: R$ 389.38 | G117: 6795
A118: Centro-Oeste | B118: GOIAS | C118: 520360 | D118: Brazabrantes | E118: 1 | F118: R$ 194.69 | G118: 6796
A119: Centro-Oeste | B119: GOIAS | C119: 520380 | D119: Britânia | E119: 2 | F119: R$ 389.38 | G119: 6797
A120: Centro-Oeste | B120: GOIAS | C120: 520390 | D120: Buriti Alegre | E120: 2 | F120: R$ 389.38 | G120: 6798
A121: Centro-Oeste | B121: GOIAS | C121: 520393 | D121: Buriti de Goiás | E121: 2 | F121: R$ 389.38 | G121: 6799
A122: Centro-Oeste | B122: GOIAS | C122: 520396 | D122: Buritinópolis | E122: 1 | F122: R$ 194.69 | G122: 6800
A123: Centro-Oeste | B123: GOIAS | C123: 520400 | D123: Cabeceiras | E123: 2 | F123: R$ 389.38 | G123: 6801
A124: Centro-Oeste | B124: GOIAS | C124: 520410 | D124: Cachoeira Alta | E124: 3 | F124: R$ 584.07 | G124: 6802
A125: Centro-Oeste | B125: GOIAS | C125: 520420 | D125: Cachoeira de Goiás | E125: 1 | F125: R$ 194.69 | G125: 6803
A126: Centro-Oeste | B126: GOIAS | C126: 520425 | D126: Cachoeira Dourada | E126: 4 | F126: R$ 778.76 | G126: 6804
A127: Centro-Oeste | B127: GOIAS | C127: 520430 | D127: Caçu | E127: 4 | F127: R$ 778.76 | G127: 6805
A128: Centro-Oeste | B128: GOIAS | C128: 520440 | D128: Caiapônia | E128: 3 | F128: R$ 584.07 | G128: 6806
A129: Centro-Oeste | B129: GOIAS | C129: 520450 | D129: Caldas Novas | E129: 17 | F129: R$ 3,309.73 | G129: 6807
A130: Centro-Oeste | B130: GOIAS | C130: 520455 | D130: Caldazinha | E130: 1 | F130: R$ 194.69 | G130: 6808
A131: Centro-Oeste | B131: GOIAS | C131: 520460 | D131: Campestre de Goiás | E131: 1 | F131: R$ 194.69 | G131: 6809
A132: Centro-Oeste | B132: GOIAS | C132: 520465 | D132: Campinaçu | E132: 2 | F132: =E132*194.69 -> R$ 389.38 | G132: 6810
A133: Centro-Oeste | B133: GOIAS | C133: 520470 | D133: Campinorte | E133: 8 | F133: R$ 1,557.52 | G133: 6811
A134: Centro-Oeste | B134: GOIAS | C134: 520480 | D134: Campo Alegre de Goiás | E134: 5 | F134: R$ 973.45 | G134: 6812
A135: Centro-Oeste | B135: GOIAS | C135: 520485 | D135: Campo Limpo de Goiás | E135: 2 | F135: R$ 389.38 | G135: 6813
A136: Centro-Oeste | B136: GOIAS | C136: 520490 | D136: Campos Belos | E136: 6 | F136: R$ 1,168.14 | G136: 6814
A137: Centro-Oeste | B137: GOIAS | C137: 520495 | D137: Campos Verdes | E137: 3 | F137: R$ 584.07 | G137: 6815
A138: Centro-Oeste | B138: GOIAS | C138: 520500 | D138: Carmo do Rio Verde | E138: 3 | F138: R$ 584.07 | G138: 6816
A139: Centro-Oeste | B139: GOIAS | C139: 520505 | D139: Castelândia | E139: 1 | F139: R$ 194.69 | G139: 6817
A140: Centro-Oeste | B140: GOIAS | C140: 520510 | D140: Catalão | E140: 3 | F140: R$ 584.07 | G140: 6818
A141: Centro-Oeste | B141: GOIAS | C141: 520520 | D141: Caturaí | E141: 2 | F141: R$ 389.38 | G141: 6819
A142: Centro-Oeste | B142: GOIAS | C142: 520530 | D142: Cavalcante | E142: 3 | F142: R$ 584.07 | G142: 6820
A143: Centro-Oeste | B143: GOIAS | C143: 520540 | D143: Ceres | E143: 6 | F143: R$ 1,168.14 | G143: 6821
A144: Centro-Oeste | B144: GOIAS | C144: 520545 | D144: Cezarina | E144: 2 | F144: R$ 389.38 | G144: 6822
A145: Centro-Oeste | B145: GOIAS | C145: 520547 | D145: Chapadão do Céu | E145: 3 | F145: R$ 584.07 | G145: 6823
A146: Centro-Oeste | B146: GOIAS | C146: 520549 | D146: Cidade Ocidental | E146: 16 | F146: R$ 3,115.04 | G146: 6824
A147: Centro-Oeste | B147: GOIAS | C147: 520551 | D147: Cocalzinho de Goiás | E147: 5 | F147: R$ 973.45 | G147: 6825
A148: Centro-Oeste | B148: GOIAS | C148: 520552 | D148: Colinas do Sul | E148: 6 | F148: R$ 1,168.14 | G148: 6826
A149: Centro-Oeste | B149: GOIAS | C149: 520570 | D149: Córrego do Ouro | E149: 1 | F149: R$ 194.69 | G149: 6827
A150: Centro-Oeste | B150: GOIAS | C150: 520580 | D150: Corumbá de Goiás | E150: 3 | F150: R$ 584.07 | G150: 6828
A151: Centro-Oeste | B151: GOIAS | C151: 520590 | D151: Corumbaíba | E151: 4 | F151: R$ 778.76 | G151: 6829
A152: Centro-Oeste | B152: GOIAS | C152: 520620 | D152: Cristalina | E152: 10 | F152: R$ 1,946.90 | G152: 6830
A153: Centro-Oeste | B153: GOIAS | C153: 520630 | D153: Cristianópolis | E153: 2 | F153: R$ 389.38 | G153: 6831
A154: Centro-Oeste | B154: GOIAS | C154: 520640 | D154: Crixás | E154: 4 | F154: R$ 778.76 | G154: 6832
A155: Centro-Oeste | B155: GOIAS | C155: 520650 | D155: Cromínia | E155: 4 | F155: R$ 778.76 | G155: 6833
A156: Centro-Oeste | B156: GOIAS | C156: 520660 | D156: Cumari | E156: 1 | F156: R$ 194.69 | G156: 6834
A157: Centro-Oeste | B157: GOIAS | C157: 520670 | D157: Damianópolis | E157: 1 | F157: R$ 194.69 | G157: 6835
A158: Centro-Oeste | B158: GOIAS | C158: 520680 | D158: Damolândia | E158: 1 | F158: R$ 194.69 | G158: 6836
A159: Centro-Oeste | B159: GOIAS | C159: 520690 | D159: Davinópolis | E159: 1 | F159: R$ 194.69 | G159: 6837
A160: Centro-Oeste | B160: GOIAS | C160: 520710 | D160: Diorama | E160: 1 | F160: R$ 194.69 | G160: 6838
A161: Centro-Oeste | B161: GOIAS | C161: 520830 | D161: Divinópolis de Goiás | E161: 2 | F161: R$ 389.38 | G161: 6839
A162: Centro-Oeste | B162: GOIAS | C162: 520725 | D162: Doverlândia | E162: 6 | F162: R$ 1,168.14 | G162: 6840
A163: Centro-Oeste | B163: GOIAS | C163: 520735 | D163: Edealina | E163: 3 | F163: R$ 584.07 | G163: 6841
A164: Centro-Oeste | B164: GOIAS | C164: 520740 | D164: Edéia | E164: 6 | F164: R$ 1,168.14 | G164: 6842
A165: Centro-Oeste | B165: GOIAS | C165: 520750 | D165: Estrela do Norte | E165: 1 | F165: R$ 194.69 | G165: 6843
A166: Centro-Oeste | B166: GOIAS | C166: 520753 | D166: Faina | E166: 4 | F166: R$ 778.76 | G166: 6844
A167: Centro-Oeste | B167: GOIAS | C167: 520760 | D167: Fazenda Nova | E167: 3 | F167: R$ 584.07 | G167: 6845
A168: Centro-Oeste | B168: GOIAS | C168: 520780 | D168: Firminópolis | E168: 5 | F168: R$ 973.45 | G168: 6846
A169: Centro-Oeste | B169: GOIAS | C169: 520790 | D169: Flores de Goiás | E169: 3 | F169: R$ 584.07 | G169: 6847
A170: Centro-Oeste | B170: GOIAS | C170: 520800 | D170: Formosa | E170: 18 | F170: R$ 3,504.42 | G170: 6848
A171: Centro-Oeste | B171: GOIAS | C171: 520810 | D171: Formoso | E171: 2 | F171: R$ 389.38 | G171: 6849
A172: Centro-Oeste | B172: GOIAS | C172: 520815 | D172: Gameleira de Goiás | E172: 2 | F172: R$ 389.38 | G172: 6850
A173: Centro-Oeste | B173: GOIAS | C173: 520840 | D173: Goianápolis | E173: 4 | F173: R$ 778.76 | G173: 6851
A174: Centro-Oeste | B174: GOIAS | C174: 520850 | D174: Goiandira | E174: 3 | F174: R$ 584.07 | G174: 6852
A175: Centro-Oeste | B175: GOIAS | C175: 520860 | D175: Goianésia | E175: 21 | F175: R$ 4,088.49 | G175: 6853
A176: Centro-Oeste | B176: GOIAS | C176: 520870 | D176: Goiânia | E176: 161 | F176: R$ 31,345.09 | G176: 6854
A177: Centro-Oeste | B177: GOIAS | C177: 520880 | D177: Goianira | E177: 10 | F177: R$ 1,946.90 | G177: 6855
A178: Centro-Oeste | B178: GOIAS | C178: 520890 | D178: Goiás | E178: 8 | F178: R$ 1,557.52 | G178: 6856
A179: Centro-Oeste | B179: GOIAS | C179: 520910 | D179: Goiatuba | E179: 10 | F179: R$ 1,946.90 | G179: 6857
A180: Centro-Oeste | B180: GOIAS | C180: 520915 | D180: Gouvelândia | E180: 2 | F180: R$ 389.38 | G180: 6858
A181: Centro-Oeste | B181: GOIAS | C181: 520920 | D181: Guapó | E181: 6 | F181: R$ 1,168.14 | G181: 6859
A182: Centro-Oeste | B182: GOIAS | C182: 520929 | D182: Guaraíta | E182: 1 | F182: R$ 194.69 | G182: 6860
A183: Centro-Oeste | B183: GOIAS | C183: 520940 | D183: Guarani de Goiás | E183: 1 | F183: R$ 194.69 | G183: 6861
A184: Centro-Oeste | B184: GOIAS | C184: 520945 | D184: Guarinos | E184: 1 | F184: R$ 194.69 | G184: 6862
A185: Centro-Oeste | B185: GOIAS | C185: 520960 | D185: Heitoraí | E185: 1 | F185: R$ 194.69 | G185: 6863
A186: Centro-Oeste | B186: GOIAS | C186: 520970 | D186: Hidrolândia | E186: 6 | F186: R$ 1,168.14 | G186: 6864
A187: Centro-Oeste | B187: GOIAS | C187: 520980 | D187: Hidrolina | E187: 2 | F187: R$ 389.38 | G187: 6865
A188: Centro-Oeste | B188: GOIAS | C188: 520990 | D188: Iaciara | E188: 3 | F188: R$ 584.07 | G188: 6866
A189: Centro-Oeste | B189: GOIAS | C189: 520993 | D189: Inaciolândia | E189: 2 | F189: R$ 389.38 | G189: 6867
A190: Centro-Oeste | B190: GOIAS | C190: 520995 | D190: Indiara | E190: 4 | F190: R$ 778.76 | G190: 6868
A191: Centro-Oeste | B191: GOIAS | C191: 521000 | D191: Inhumas | E191: 15 | F191: R$ 2,920.35 | G191: 6869
A192: Centro-Oeste | B192: GOIAS | C192: 521010 | D192: Ipameri | E192: 8 | F192: R$ 1,557.52 | G192: 6870
A193: Centro-Oeste | B193: GOIAS | C193: 521015 | D193: Ipiranga de Goiás | E193: 2 | F193: R$ 389.38 | G193: 6871
A194: Centro-Oeste | B194: GOIAS | C194: 521020 | D194: Iporá | E194: 8 | F194: R$ 1,557.52 | G194: 6872
A195: Centro-Oeste | B195: GOIAS | C195: 521030 | D195: Israelândia | E195: 1 | F195: R$ 194.69 | G195: 6873
A196: Centro-Oeste | B196: GOIAS | C196: 521040 | D196: Itaberaí | E196: 9 | F196: =E196*194.69 -> R$ 1,752.21 | G196: 6874
A197: Centro-Oeste | B197: GOIAS | C197: 521056 | D197: Itaguari | E197: 3 | F197: R$ 584.07 | G197: 6875
A198: Centro-Oeste | B198: GOIAS | C198: 521060 | D198: Itaguaru | E198: 2 | F198: R$ 389.38 | G198: 6876
A199: Centro-Oeste | B199: GOIAS | C199: 521080 | D199: Itajá | E199: 3 | F199: R$ 584.07 | G199: 6877
A200: Centro-Oeste | B200: GOIAS | C200: 521090 | D200: Itapaci | E200: 6 | F200: R$ 1,168.14 | G200: 6878
... 3124 more rows
